[Event "GrandPrix_29.05"]
[Site "Chess.com"]
[Date "2020.05.29"]
[Round "6"]
[White "Pultis"]
[Black "Eltaj_Safarli"]
[Result "0-1"]
[WhiteElo "2237"]
[BlackElo "2445"]
[TimeControl "600+2"]
[EndTime "12:03:40 PDT"]
[Termination "Eltaj_Safarli won on time"]

1. d4 {[%clk 0:10:01.9]} 1... Nf6 {[%clk 0:09:59.9]} 2. Nf3 {[%clk 0:09:53]}
2... g6 {[%clk 0:10:01.1]} 3. c4 {[%clk 0:09:43.1]} 3... Bg7 {[%clk 0:10:01.8]}
4. g3 {[%clk 0:09:32]} 4... d5 {[%clk 0:10:01.1]} 5. cxd5 {[%clk 0:09:31.2]}
5... Nxd5 {[%clk 0:10:03]} 6. e4 {[%clk 0:09:30.3]} 6... Nb6 {[%clk 0:10:01.1]}
7. Bg2 {[%clk 0:09:13.5]} 7... Bg4 {[%clk 0:09:32]} 8. Nbd2 {[%clk 0:09:01.3]}
8... Nc6 {[%clk 0:08:25.7]} 9. d5 {[%clk 0:08:55.8]} 9... Ne5 {[%clk 0:08:25.3]}
10. Qb3 {[%clk 0:08:46.4]} 10... Nxf3+ {[%clk 0:08:10.7]} 11. Nxf3 {[%clk
0:08:44.5]} 11... e6 {[%clk 0:07:58.2]} 12. h3 {[%clk 0:07:24.8]} 12... Bxf3
{[%clk 0:07:57.4]} 13. Bxf3 {[%clk 0:07:26.7]} 13... exd5 {[%clk 0:07:57.7]} 14.
exd5 {[%clk 0:07:28.6]} 14... O-O {[%clk 0:07:41.3]} 15. O-O {[%clk 0:07:26.3]}
15... Qd7 {[%clk 0:07:36.7]} 16. Kg2 {[%clk 0:07:24.1]} 16... a5 {[%clk
0:05:39.7]} 17. a4 {[%clk 0:06:58.5]} 17... Rfb8 {[%clk 0:03:47.6]} 18. Bf4
{[%clk 0:05:58.3]} 18... Nc8 {[%clk 0:03:46.7]} 19. Bg4 {[%clk 0:05:11.5]} 19...
Qd8 {[%clk 0:03:42.3]} 20. Rac1 {[%clk 0:04:28.5]} 20... Nd6 {[%clk 0:03:43.2]}
21. Rc5 {[%clk 0:04:23.8]} 21... h5 {[%clk 0:03:01.9]} 22. Bf3 {[%clk
0:04:05.3]} 22... Bd4 {[%clk 0:02:39.9]} 23. Rc2 {[%clk 0:04:05]} 23... Qd7
{[%clk 0:02:34.4]} 24. Rfc1 {[%clk 0:03:59.4]} 24... Bb6 {[%clk 0:02:34.1]} 25.
g4 {[%clk 0:03:45.5]} 25... hxg4 {[%clk 0:02:29.2]} 26. hxg4 {[%clk 0:03:46.2]}
26... Re8 {[%clk 0:02:24.9]} 27. Rh1 {[%clk 0:02:42.8]} 27... Bd4 {[%clk
0:02:22.2]} 28. Qd3 {[%clk 0:02:00]} 28... Bg7 {[%clk 0:02:22.5]} 29. b3 {[%clk
0:01:59.9]} 29... Qe7 {[%clk 0:01:46.9]} 30. Rhc1 {[%clk 0:01:57.2]} 30... Rac8
{[%clk 0:01:44.3]} 31. Bd2 {[%clk 0:01:32.1]} 31... b6 {[%clk 0:01:44.7]} 32.
Rc6 {[%clk 0:01:32.6]} 32... Be5 {[%clk 0:01:39.1]} 33. Re1 {[%clk 0:01:28.2]}
33... Qh4 {[%clk 0:01:17.1]} 34. Rh1 {[%clk 0:01:14]} 34... Qf6 {[%clk
0:01:17.7]} 35. Qe3 {[%clk 0:00:28.1]} 35... Qg7 {[%clk 0:01:00.3]} 36. Qd3
{[%clk 0:00:20.5]} 36... Re7 {[%clk 0:00:57.7]} 37. g5 {[%clk 0:00:18.9]} 37...
Rce8 {[%clk 0:00:47.7]} 38. Bg4 {[%clk 0:00:11.7]} 38... Bd4 {[%clk 0:00:46.9]}
39. Bf4 {[%clk 0:00:11.9]} 39... Re4 {[%clk 0:00:45.6]} 40. Qf3 {[%clk
0:00:10.5]} 40... f5 {[%clk 0:00:24.9]} 41. gxf6 {[%clk 0:00:08.2]} 41... Qxf6
{[%clk 0:00:26.4]} 42. Bg3 {[%clk 0:00:09.1]} 42... Qxf3+ {[%clk 0:00:18.2]} 43.
Bxf3 {[%clk 0:00:11]} 43... R4e7 {[%clk 0:00:19]} 44. Rhc1 {[%clk 0:00:11.2]}
44... Bc5 {[%clk 0:00:19.3]} 45. Bg4 {[%clk 0:00:07.6]} 45... Kg7 {[%clk
0:00:14.4]} 46. Be6 {[%clk 0:00:08.8]} 46... Kf6 {[%clk 0:00:15.5]} 47. f4
{[%clk 0:00:07]} 47... g5 {[%clk 0:00:16.3]} 48. fxg5+ {[%clk 0:00:07.2]} 48...
Kxg5 {[%clk 0:00:18.2]} 49. R1xc5 {[%clk 0:00:06.1]} 49... bxc5 {[%clk
0:00:18.8]} 50. Rxc5 {[%clk 0:00:08]} 50... Rb8 {[%clk 0:00:12.8]} 51. Rxa5
{[%clk 0:00:05.8]} 51... Rxb3 {[%clk 0:00:13.5]} 52. Ra8 {[%clk 0:00:06.2]}
52... Rg7 {[%clk 0:00:11.7]} 53. Kh2 {[%clk 0:00:02.8]} 53... Rb2+ {[%clk
0:00:10.5]} 54. Kg1 {[%clk 0:00:02.5]} 54... Kf6 {[%clk 0:00:10.9]} 55. Rf8+
{[%clk 0:00:02.6]} 55... Ke7 {[%clk 0:00:12.1]} 56. Rf3 {[%clk 0:00:04.3]} 56...
Ne4 {[%clk 0:00:12.8]} 0-1

[Event "GrandPrix_29.05"]
[Site "Chess.com"]
[Date "2020.05.29"]
[Round "6"]
[White "TheEternalPatzer"]
[Black "MirMan90"]
[Result "0-1"]
[WhiteElo "2067"]
[BlackElo "2291"]
[TimeControl "600+2"]
[EndTime "12:03:40 PDT"]
[Termination "MirMan90 won on time"]

1. c4 {[%clk 0:10:01.9]} 1... e5 {[%clk 0:09:58.7]} 2. Nc3 {[%clk 0:10:01.3]}
2... Nc6 {[%clk 0:09:59.7]} 3. g3 {[%clk 0:09:58]} 3... g6 {[%clk 0:10:00.9]} 4.
Bg2 {[%clk 0:09:58]} 4... Bg7 {[%clk 0:10:02.5]} 5. e4 {[%clk 0:09:58.8]} 5...
d6 {[%clk 0:10:02.6]} 6. Nge2 {[%clk 0:09:59.4]} 6... f5 {[%clk 0:10:00]} 7. d3
{[%clk 0:09:48.2]} 7... Nf6 {[%clk 0:10:00.8]} 8. O-O {[%clk 0:09:48.2]} 8...
O-O {[%clk 0:10:01.7]} 9. Nd5 {[%clk 0:09:16.4]} 9... fxe4 {[%clk 0:09:16.2]}
10. dxe4 {[%clk 0:09:16.1]} 10... Bg4 {[%clk 0:09:12.9]} 11. f3 {[%clk
0:09:15.9]} 11... Be6 {[%clk 0:09:12.2]} 12. Be3 {[%clk 0:09:14.9]} 12... a5
{[%clk 0:09:04]} 13. Qd2 {[%clk 0:09:13.5]} 13... Nd7 {[%clk 0:09:02.7]} 14. Bg5
{[%clk 0:07:12.6]} 14... Qb8 {[%clk 0:08:52.2]} 15. Nec3 {[%clk 0:07:03]} 15...
Nd4 {[%clk 0:08:38.3]} 16. Nb5 {[%clk 0:06:52.5]} 16... Bxd5 {[%clk 0:08:26.3]}
17. exd5 {[%clk 0:06:36.4]} 17... c6 {[%clk 0:05:22.6]} 18. Nxd4 {[%clk
0:06:31.1]} 18... exd4 {[%clk 0:05:23.7]} 19. f4 {[%clk 0:06:02.2]} 19... Qc7
{[%clk 0:05:06.7]} 20. Rae1 {[%clk 0:05:42]} 20... Rfe8 {[%clk 0:04:45.4]} 21.
Bh3 {[%clk 0:05:30.2]} 21... Nc5 {[%clk 0:04:37.6]} 22. Be6+ {[%clk 0:04:25]}
22... Kh8 {[%clk 0:04:24.7]} 23. f5 {[%clk 0:04:21.9]} 23... gxf5 {[%clk
0:04:21.2]} 24. Rxf5 {[%clk 0:04:13.5]} 24... Rf8 {[%clk 0:04:14]} 25. Ref1
{[%clk 0:04:06.8]} 25... Rxf5 {[%clk 0:04:07.2]} 26. Rxf5 {[%clk 0:04:06.2]}
26... Ne4 {[%clk 0:04:01.9]} 27. Qf4 {[%clk 0:04:00.4]} 27... Nxg5 {[%clk
0:04:01]} 28. Qxg5 {[%clk 0:03:50.2]} 28... Qb6 {[%clk 0:03:45.8]} 29. Qd2
{[%clk 0:02:41.9]} 29... cxd5 {[%clk 0:03:15.7]} 30. cxd5 {[%clk 0:01:53.7]}
30... d3+ {[%clk 0:03:12]} 31. Kg2 {[%clk 0:01:54]} 31... Qxb2 {[%clk
0:03:08.9]} 32. Rf2 {[%clk 0:01:50.2]} 32... Qd4 {[%clk 0:02:14.6]} 33. Rf4
{[%clk 0:01:48.9]} 33... Qc3 {[%clk 0:02:10.2]} 34. Rf2 {[%clk 0:01:38.8]} 34...
b5 {[%clk 0:02:06.6]} 35. Bf5 {[%clk 0:01:33.1]} 35... b4 {[%clk 0:01:12.5]} 36.
Qxd3 {[%clk 0:01:31.3]} 36... Qxd3 {[%clk 0:01:11]} 37. Bxd3 {[%clk 0:01:31.2]}
37... a4 {[%clk 0:01:10.8]} 38. Bc2 {[%clk 0:01:25.1]} 38... Bd4 {[%clk
0:00:54.8]} 39. Rd2 {[%clk 0:01:24]} 39... Be5 {[%clk 0:00:51.5]} 40. h4 {[%clk
0:01:08.7]} 40... Kg7 {[%clk 0:00:29.5]} 41. Rd3 {[%clk 0:01:06.5]} 41... b3
{[%clk 0:00:28.3]} 42. Bb1 {[%clk 0:00:55.2]} 42... b2 {[%clk 0:00:26.1]} 43.
Kf3 {[%clk 0:00:21.3]} 43... Rc8 {[%clk 0:00:26.3]} 44. Ke2 {[%clk 0:00:21]}
44... Rc1 {[%clk 0:00:26.9]} 45. Rd1 {[%clk 0:00:20.8]} 45... Bxg3 {[%clk
0:00:20.8]} 46. h5 {[%clk 0:00:21.5]} 46... h6 {[%clk 0:00:21.6]} 47. Bg6 {[%clk
0:00:20.1]} 47... Kf6 {[%clk 0:00:20.8]} 48. a3 {[%clk 0:00:10.1]} 48... Ke5
{[%clk 0:00:19.2]} 49. Bd3 {[%clk 0:00:08.2]} 49... Kxd5 {[%clk 0:00:15.3]} 50.
Bc2+ {[%clk 0:00:08]} 50... Kc5 {[%clk 0:00:14.8]} 51. Be4 {[%clk 0:00:07.8]}
51... Bf4 {[%clk 0:00:13.7]} 52. Rd5+ {[%clk 0:00:04.6]} 52... Kc4 {[%clk
0:00:13.7]} 53. Rd1 {[%clk 0:00:06.5]} 53... Kb3 {[%clk 0:00:13.1]} 54. Bd5+
{[%clk 0:00:06]} 54... Kxa3 {[%clk 0:00:13.7]} 55. Be4 {[%clk 0:00:02.6]} 55...
Ka2 {[%clk 0:00:14.9]} 56. Bd5+ {[%clk 0:00:02.8]} 56... Ka1 {[%clk 0:00:14.5]}
0-1

[Event "GrandPrix_29.05"]
[Site "Chess.com"]
[Date "2020.05.29"]
[Round "6"]
[White "esskeettit"]
[Black "troisi"]
[Result "1/2-1/2"]
[WhiteElo "2079"]
[BlackElo "1580"]
[TimeControl "600+2"]
[EndTime "12:03:40 PDT"]
[Termination "Game drawn - insufficient material"]

1. d4 {[%clk 0:10:01.9]} 1... Nf6 {[%clk 0:09:52.5]} 2. c4 {[%clk 0:10:02.9]}
2... e6 {[%clk 0:09:37.9]} 3. Nc3 {[%clk 0:10:03.9]} 3... Bb4 {[%clk 0:09:37.2]}
4. e3 {[%clk 0:10:05.1]} 4... O-O {[%clk 0:09:29.4]} 5. Bd3 {[%clk 0:10:05.2]}
5... c5 {[%clk 0:09:26.1]} 6. Ne2 {[%clk 0:10:05.6]} 6... b6 {[%clk 0:09:25.7]}
7. a3 {[%clk 0:09:59.2]} 7... Ba5 {[%clk 0:09:25.8]} 8. O-O {[%clk 0:09:56.2]}
8... Bxc3 {[%clk 0:08:53]} 9. Nxc3 {[%clk 0:09:56.1]} 9... Bb7 {[%clk
0:08:54.4]} 10. b4 {[%clk 0:09:40.6]} 10... d5 {[%clk 0:08:45.2]} 11. bxc5
{[%clk 0:09:22.8]} 11... bxc5 {[%clk 0:08:41.3]} 12. cxd5 {[%clk 0:08:49.1]}
12... cxd4 {[%clk 0:08:35.9]} 13. exd4 {[%clk 0:08:51]} 13... Nxd5 {[%clk
0:08:32.1]} 14. Ne4 {[%clk 0:08:52.1]} 14... Nc6 {[%clk 0:08:03.3]} 15. Be3
{[%clk 0:08:23.2]} 15... Rb8 {[%clk 0:07:29.7]} 16. Qh5 {[%clk 0:08:15]} 16...
f5 {[%clk 0:06:45]} 17. Ng5 {[%clk 0:07:53.1]} 17... Nf6 {[%clk 0:06:41]} 18.
Qh4 {[%clk 0:07:49.6]} 18... Re8 {[%clk 0:05:29.4]} 19. Bc4 {[%clk 0:07:50.2]}
19... Qd7 {[%clk 0:05:26.5]} 20. Rfd1 {[%clk 0:07:11.4]} 20... Na5 {[%clk
0:05:12.4]} 21. Bf1 {[%clk 0:06:22.7]} 21... h6 {[%clk 0:05:06.1]} 22. Nh3
{[%clk 0:06:21.8]} 22... Qf7 {[%clk 0:04:55.8]} 23. Qg3 {[%clk 0:05:57.2]} 23...
Nc6 {[%clk 0:03:44.2]} 24. Rab1 {[%clk 0:05:40.8]} 24... Ne4 {[%clk 0:03:37.2]}
25. Qf3 {[%clk 0:05:17.7]} 25... Nc3 {[%clk 0:03:27.1]} 26. Rxb7 {[%clk
0:05:17.8]} 26... Qxb7 {[%clk 0:03:22.9]} 27. Rc1 {[%clk 0:05:17.4]} 27... Nd5
{[%clk 0:03:19.8]} 28. Nf4 {[%clk 0:05:13.3]} 28... Nxf4 {[%clk 0:02:43.3]} 29.
Bxf4 {[%clk 0:04:59.5]} 29... Rbc8 {[%clk 0:02:19.8]} 30. g3 {[%clk 0:04:38.6]}
30... Qd7 {[%clk 0:01:52.9]} 31. Rd1 {[%clk 0:04:01.6]} 31... Nxd4 {[%clk
0:01:43.9]} 32. Qe3 {[%clk 0:04:02.6]} 32... e5 {[%clk 0:01:25.7]} 33. Bxe5
{[%clk 0:03:50.9]} 33... Rxe5 {[%clk 0:01:25.4]} 34. Rxd4 {[%clk 0:03:47.3]}
34... Rxe3 {[%clk 0:01:20]} 35. Rxd7 {[%clk 0:03:48.3]} 35... Rxa3 {[%clk
0:01:20.8]} 36. Kg2 {[%clk 0:03:48]} 36... Ra2 {[%clk 0:01:21.1]} 37. Rd4 {[%clk
0:03:46.5]} 37... Rcc2 {[%clk 0:01:19.4]} 38. Bc4+ {[%clk 0:03:45.4]} 38... Kh7
{[%clk 0:01:15.4]} 39. Bxa2 {[%clk 0:03:45.3]} 39... Rxa2 {[%clk 0:01:17.3]} 40.
h4 {[%clk 0:03:40.6]} 40... Kg6 {[%clk 0:01:14.2]} 41. Kf3 {[%clk 0:03:33.7]}
41... a5 {[%clk 0:01:06.9]} 42. Rd6+ {[%clk 0:03:31.5]} 42... Kf7 {[%clk
0:01:07.1]} 43. Ra6 {[%clk 0:03:27]} 43... a4 {[%clk 0:01:04.6]} 44. Ra7+ {[%clk
0:03:20.7]} 44... Kf6 {[%clk 0:01:04.5]} 45. Ra6+ {[%clk 0:03:20]} 45... Ke5
{[%clk 0:01:05.5]} 46. Ra5+ {[%clk 0:03:21.4]} 46... Kf6 {[%clk 0:01:00.4]} 47.
Ra6+ {[%clk 0:03:22.1]} 47... Kf7 {[%clk 0:01:01.8]} 48. Ra7+ {[%clk 0:03:23.2]}
48... Kg6 {[%clk 0:01:03.3]} 49. Ra6+ {[%clk 0:03:23.1]} 49... Kh5 {[%clk
0:01:04.4]} 50. Ra5 {[%clk 0:03:24.2]} 50... g6 {[%clk 0:01:05.3]} 51. Ra8
{[%clk 0:02:34]} 51... a3 {[%clk 0:00:58.9]} 52. Ra5 {[%clk 0:02:29]} 52... Ra1
{[%clk 0:00:53]} 53. Kf4 {[%clk 0:02:24.8]} 53... a2 {[%clk 0:00:32.5]} 54. f3
{[%clk 0:02:02.3]} 54... g5+ {[%clk 0:00:24.9]} 55. hxg5 {[%clk 0:02:01.2]}
55... hxg5+ {[%clk 0:00:25.6]} 56. Kxf5 {[%clk 0:02:01.2]} 56... Rf1 {[%clk
0:00:26.5]} 57. g4+ {[%clk 0:01:00.1]} 57... Kh4 {[%clk 0:00:24.9]} 58. Rxa2
{[%clk 0:01:00]} 58... Rxf3+ {[%clk 0:00:25.5]} 59. Kg6 {[%clk 0:01:01.1]} 59...
Rg3 {[%clk 0:00:08.7]} 60. Kf5 {[%clk 0:00:53.3]} 60... Rf3+ {[%clk 0:00:09.8]}
61. Kg6 {[%clk 0:00:54.7]} 61... Rf4 {[%clk 0:00:07.7]} 62. Rh2+ {[%clk
0:00:51.2]} 62... Kg3 {[%clk 0:00:08.7]} 63. Rh5 {[%clk 0:00:36.2]} 63... Rxg4
{[%clk 0:00:09]} 64. Rxg5 {[%clk 0:00:37.6]} 64... Rxg5+ {[%clk 0:00:10.9]} 65.
Kxg5 {[%clk 0:00:39.5]} 1/2-1/2

[Event "GrandPrix_29.05"]
[Site "Chess.com"]
[Date "2020.05.29"]
[Round "6"]
[White "MikaelyanArman1996"]
[Black "MasterSonnevanck2"]
[Result "1-0"]
[WhiteElo "2276"]
[BlackElo "2057"]
[TimeControl "600+2"]
[EndTime "12:03:41 PDT"]
[Termination "MikaelyanArman1996 won by resignation"]

1. d4 {[%clk 0:10:01.9]} 1... Nf6 {[%clk 0:10:00]} 2. c4 {[%clk 0:10:02.9]} 2...
e6 {[%clk 0:10:00.9]} 3. Nf3 {[%clk 0:10:04]} 3... c5 {[%clk 0:10:01.6]} 4. d5
{[%clk 0:10:04.9]} 4... exd5 {[%clk 0:10:02.7]} 5. cxd5 {[%clk 0:10:06.8]} 5...
d6 {[%clk 0:10:04]} 6. Nc3 {[%clk 0:10:08]} 6... g6 {[%clk 0:10:05.6]} 7. h3
{[%clk 0:10:08.2]} 7... b5 {[%clk 0:10:03]} 8. Nxb5 {[%clk 0:09:58.3]} 8... Bg7
{[%clk 0:10:03.6]} 9. Nc3 {[%clk 0:09:33.9]} 9... O-O {[%clk 0:10:02.7]} 10. g3
{[%clk 0:09:27.4]} 10... Bf5 {[%clk 0:09:18.7]} 11. Bg2 {[%clk 0:09:27.8]} 11...
Ne4 {[%clk 0:09:05.6]} 12. Bd2 {[%clk 0:09:28.4]} 12... Nxc3 {[%clk 0:08:41.2]}
13. Bxc3 {[%clk 0:09:27.5]} 13... Bxc3+ {[%clk 0:08:37.9]} 14. bxc3 {[%clk
0:09:29.4]} 14... Qa5 {[%clk 0:08:31.5]} 15. Qd2 {[%clk 0:09:26.4]} 15... Nd7
{[%clk 0:08:24.5]} 16. O-O {[%clk 0:09:25.7]} 16... Nf6 {[%clk 0:08:21]} 17. c4
{[%clk 0:09:01.7]} 17... Qxd2 {[%clk 0:08:07.8]} 18. Nxd2 {[%clk 0:09:03.6]}
18... Rfe8 {[%clk 0:08:02.3]} 19. Rfe1 {[%clk 0:08:59.1]} 19... Rab8 {[%clk
0:07:26]} 20. Nb3 {[%clk 0:07:52.8]} 20... Rb4 {[%clk 0:06:48]} 21. Rac1 {[%clk
0:07:42.7]} 21... Bc8 {[%clk 0:06:32.7]} 22. e4 {[%clk 0:07:34.8]} 22... Nd7
{[%clk 0:06:29.8]} 23. f4 {[%clk 0:07:09.5]} 23... Ra4 {[%clk 0:05:57.8]} 24.
Rc2 {[%clk 0:07:02.5]} 24... f6 {[%clk 0:05:58.1]} 25. Bf1 {[%clk 0:06:49.4]}
25... Ba6 {[%clk 0:05:17.7]} 26. Nd2 {[%clk 0:06:29.1]} 26... Ra3 {[%clk
0:04:51.1]} 27. Kf2 {[%clk 0:06:28]} 27... Rb8 {[%clk 0:04:39.2]} 28. Re3 {[%clk
0:06:18.5]} 28... Ra4 {[%clk 0:04:32.8]} 29. Rb3 {[%clk 0:06:12]} 29... Rxb3
{[%clk 0:04:26.5]} 30. axb3 {[%clk 0:06:13.9]} 30... Ra1 {[%clk 0:04:26.2]} 31.
h4 {[%clk 0:05:50.9]} 31... Bc8 {[%clk 0:04:25.3]} 32. Bh3 {[%clk 0:05:47.2]}
32... f5 {[%clk 0:04:19]} 33. g4 {[%clk 0:05:25.8]} 33... Nf6 {[%clk 0:04:09]}
34. gxf5 {[%clk 0:05:18.2]} 34... Nh5 {[%clk 0:03:36.8]} 35. Kf3 {[%clk
0:04:35.9]} 35... Rg1 {[%clk 0:03:11.6]} 36. Nf1 {[%clk 0:04:22.7]} 36... gxf5
{[%clk 0:02:54.2]} 37. e5 {[%clk 0:04:15.7]} 37... dxe5 {[%clk 0:02:39.1]} 38.
fxe5 {[%clk 0:04:17.6]} 38... f4 {[%clk 0:02:40]} 39. e6 {[%clk 0:02:33.7]}
39... Kf8 {[%clk 0:02:21.8]} 40. Kf2 {[%clk 0:02:18.8]} 40... Rg8 {[%clk
0:01:48.3]} 41. d6 {[%clk 0:02:11.9]} 41... Bb7 {[%clk 0:01:36.4]} 42. Re2
{[%clk 0:01:53.7]} 42... Nf6 {[%clk 0:01:35.2]} 43. Nd2 {[%clk 0:01:45.4]} 43...
Ke8 {[%clk 0:01:23.8]} 44. e7 {[%clk 0:01:39.7]} 44... Bc6 {[%clk 0:01:12.7]}
45. Re5 {[%clk 0:01:19.7]} 45... Bd7 {[%clk 0:00:50.2]} 46. Bf5 {[%clk
0:00:54.9]} 46... Ng4+ {[%clk 0:00:42.6]} 47. Bxg4 {[%clk 0:00:55.6]} 47... Rxg4
{[%clk 0:00:42.1]} 48. Ne4 {[%clk 0:00:49.8]} 48... Rg6 {[%clk 0:00:37.5]} 49.
h5 {[%clk 0:00:50.8]} 49... Rh6 {[%clk 0:00:37.8]} 50. Rg5 {[%clk 0:00:19.7]}
50... Be6 {[%clk 0:00:31.7]} 51. Nxc5 {[%clk 0:00:17.3]} 51... Bf7 {[%clk
0:00:32.4]} 52. Ne4 {[%clk 0:00:14.7]} 52... Re6 {[%clk 0:00:32.1]} 53. Kf3
{[%clk 0:00:14.1]} 53... h6 {[%clk 0:00:32.7]} 54. Rb5 {[%clk 0:00:12.1]} 54...
Kd7 {[%clk 0:00:29.2]} 55. Rb7+ {[%clk 0:00:12.4]} 55... Kc6 {[%clk 0:00:28.2]}
56. Rc7+ {[%clk 0:00:11.2]} 56... Kb6 {[%clk 0:00:28]} 57. c5+ {[%clk
0:00:12.6]} 57... Ka6 {[%clk 0:00:27.6]} 58. Kxf4 {[%clk 0:00:11.1]} 58... Bxh5
{[%clk 0:00:27.6]} 59. Nc3 {[%clk 0:00:10.1]} 59... Bg6 {[%clk 0:00:26]} 60. b4
{[%clk 0:00:11.2]} 60... Rf6+ {[%clk 0:00:25.8]} 61. Ke5 {[%clk 0:00:11]} 61...
Rf5+ {[%clk 0:00:26.5]} 62. Ke6 {[%clk 0:00:11.3]} 1-0

[Event "GrandPrix_29.05"]
[Site "Chess.com"]
[Date "2020.05.29"]
[Round "6"]
[White "0plaksin0"]
[Black "A_N_D-R_E_I"]
[Result "0-1"]
[WhiteElo "2153"]
[BlackElo "2098"]
[TimeControl "600+2"]
[EndTime "12:03:42 PDT"]
[Termination "A_N_D-R_E_I won by resignation"]

1. e4 {[%clk 0:09:53]} 1... c5 {[%clk 0:09:58.1]} 2. Nf3 {[%clk 0:09:53.8]} 2...
Nc6 {[%clk 0:09:59.1]} 3. d4 {[%clk 0:09:55.2]} 3... cxd4 {[%clk 0:10:01]} 4.
Nxd4 {[%clk 0:09:57.1]} 4... Nf6 {[%clk 0:10:01.7]} 5. Nc3 {[%clk 0:09:56.9]}
5... e5 {[%clk 0:10:03.1]} 6. Ndb5 {[%clk 0:09:57.9]} 6... d6 {[%clk 0:10:04.3]}
7. Bg5 {[%clk 0:09:58.1]} 7... a6 {[%clk 0:10:04.8]} 8. Na3 {[%clk 0:09:58.7]}
8... b5 {[%clk 0:10:06.4]} 9. Nd5 {[%clk 0:09:59.5]} 9... Be7 {[%clk 0:10:07.2]}
10. Bxf6 {[%clk 0:10:00.4]} 10... Bxf6 {[%clk 0:10:09.1]} 11. h4 {[%clk
0:10:01.6]} 11... O-O {[%clk 0:09:40.7]} 12. c3 {[%clk 0:09:59.9]} 12... g6
{[%clk 0:09:39.4]} 13. g3 {[%clk 0:09:59.6]} 13... Be6 {[%clk 0:09:33.2]} 14.
Bg2 {[%clk 0:09:58.8]} 14... Bg7 {[%clk 0:09:33.8]} 15. O-O {[%clk 0:09:59.2]}
15... Ne7 {[%clk 0:09:33.3]} 16. Nxe7+ {[%clk 0:09:52.5]} 16... Qxe7 {[%clk
0:09:34]} 17. Nc2 {[%clk 0:09:53.8]} 17... Bh6 {[%clk 0:09:30.2]} 18. Nb4 {[%clk
0:09:51.4]} 18... a5 {[%clk 0:09:15.2]} 19. Nd5 {[%clk 0:09:49]} 19... Qb7
{[%clk 0:09:15.4]} 20. a4 {[%clk 0:08:59]} 20... bxa4 {[%clk 0:09:09.8]} 21.
Rxa4 {[%clk 0:08:40]} 21... Qxb2 {[%clk 0:08:23.4]} 22. Ne7+ {[%clk 0:08:27.8]}
22... Kh8 {[%clk 0:08:20.9]} 23. Qxd6 {[%clk 0:08:26.7]} 23... Qxc3 {[%clk
0:08:20.2]} 24. Nd5 {[%clk 0:07:50.8]} 24... Qb2 {[%clk 0:06:17]} 25. Rfa1
{[%clk 0:06:54.9]} 25... Rfd8 {[%clk 0:06:06.2]} 26. Qc7 {[%clk 0:06:17.9]}
26... Rdc8 {[%clk 0:05:09.8]} 27. Qb6 {[%clk 0:06:09.9]} 27... Rc1+ {[%clk
0:04:45.8]} 28. Rxc1 {[%clk 0:05:25.1]} 28... Qxc1+ {[%clk 0:04:47.7]} 29. Kh2
{[%clk 0:05:25.4]} 29... Rc8 {[%clk 0:01:14]} 30. Rxa5 {[%clk 0:04:54.4]} 30...
Bf8 {[%clk 0:01:13.9]} 31. Qb7 {[%clk 0:02:18.7]} 31... Qd2 {[%clk 0:01:09]} 32.
Ra8 {[%clk 0:02:18.4]} 32... Rxa8 {[%clk 0:01:02.8]} 33. Qxa8 {[%clk 0:02:20.3]}
33... Kg7 {[%clk 0:01:03.8]} 34. Qb8 {[%clk 0:02:06.6]} 34... Qd4 {[%clk
0:01:02.7]} 35. Nc7 {[%clk 0:01:50.2]} 35... Bd7 {[%clk 0:00:28.1]} 36. Qd8
{[%clk 0:01:22.5]} 36... Bc5 {[%clk 0:00:19.7]} 37. h5 {[%clk 0:00:55.9]} 37...
Bc6 {[%clk 0:00:06.6]} 38. h6+ {[%clk 0:00:23.8]} 38... Kxh6 {[%clk 0:00:07.5]}
39. Qh4+ {[%clk 0:00:20.9]} 39... Kg7 {[%clk 0:00:08.6]} 40. Nd5 {[%clk
0:00:12.3]} 40... Bxd5 {[%clk 0:00:08.3]} 41. exd5 {[%clk 0:00:13.5]} 41... Qxf2
{[%clk 0:00:09.1]} 42. Qe4 {[%clk 0:00:10.6]} 42... Qg1+ {[%clk 0:00:09.5]} 43.
Kh3 {[%clk 0:00:11.7]} 43... Qd4 {[%clk 0:00:09.4]} 44. Qc2 {[%clk 0:00:08.3]}
44... h5 {[%clk 0:00:08.5]} 45. Qa2 {[%clk 0:00:05.5]} 45... f5 {[%clk
0:00:06.2]} 46. Qb3 {[%clk 0:00:05.1]} 46... Kh6 {[%clk 0:00:07.1]} 47. Qc2
{[%clk 0:00:04]} 47... Qg4+ {[%clk 0:00:07.6]} 48. Kh2 {[%clk 0:00:04.7]} 48...
Bd4 {[%clk 0:00:07.6]} 49. Qc1+ {[%clk 0:00:05.5]} 49... Qg5 {[%clk 0:00:08.1]}
50. Qc8 {[%clk 0:00:06]} 50... Qf6 {[%clk 0:00:08.2]} 51. Qd7 {[%clk 0:00:04]}
51... h4 {[%clk 0:00:09.4]} 52. d6 {[%clk 0:00:02.9]} 52... hxg3+ {[%clk
0:00:10.5]} 53. Kxg3 {[%clk 0:00:03.8]} 53... Qg5+ {[%clk 0:00:11.8]} 54. Kh3
{[%clk 0:00:04.2]} 54... Qe3+ {[%clk 0:00:10]} 55. Kh2 {[%clk 0:00:05.1]} 55...
Qf4+ {[%clk 0:00:10.9]} 56. Kh1 {[%clk 0:00:05.6]} 56... Qh4+ {[%clk 0:00:11.2]}
0-1